[Event "XVII Profigaia Open 2017"]
[Site "Gaia"]
[Date "2017.06.17"]
[Round "5"]
[White "Duarte Mermow, Marcelo"]
[Black "Freitas, Ruben Manuel"]
[Result "1/2-1/2"]
[ECO "D53"]
[WhiteElo "2344"]
[BlackElo "1636"]
[Annotator "NA RC"]
[PlyCount "104"]
[EventDate "2017.??.??"]
[EventType "swiss"]
[EventCountry "POR"]
[SourceTitle "playchess.com"]
[Source "ChessBase"]
[SourceQuality "1"]
[TimeControl "5400+30"]

{[%evp 22,94,31,31,8,32767,32767,20,32767,33,45,42,56,47,66,60,32767,50,63,32767,32767,32767,32767,32767,32767,32767,32767,32767,32767,32767,32767,32767,89,93,97,91,105,106,130,61,77,77,71,32767,32767,0,43,66,62,10,39,-75,259,254,493,569,32767,32767,32767,32767,704,32767,686,626,588,349,32767,32767,379,433,362,427,32767,32767,408]} 1. d4 {[%emt 0:00:00]} Nf6 {[%emt 0:00:29]} 2. c4 {[%emt 0:00:00]} e6 {[%emt 0:00:12]} 3. Nc3 {[%emt 0:00:00]} d5 {[%emt 0:00:27]} 4. Bg5 {[%emt 0:00:00]} Be7 {[%emt 0:00:07]} 5. e3 {[%emt 0:00:07]} O-O {[%emt 0:00:36]} 6. Bd3 {[%emt 0:04:09]} h6 {[%emt 0:01:02]} 7. Bh4 {[%emt 0:00:08]} b6 {[%emt 0:01:03] D53: Queen's Gambit Declined: 4 Bg5 Be7: Early deviations} (7... Nbd7 8. Nf3 c5 9. O-O cxd4 10. exd4 dxc4 11. Bxc4 Nb6 12. Bb3 Bd7 13. Ne5 Bc6 14. Nxc6 bxc6 15. Rc1 Rc8 16. Na4 Nxa4 17. Bxa4 Nd5 18. Bxe7 Nxe7 19. b3 Nf5 20. Rxc6 Rxc6 21. Bxc6 Qxd4 {½-½ (30) Adly,A (2597)-Sargissian,G (2666) Dubai 2017}) 8. cxd5 {[%emt 0:00:43]} Nxd5 {[%emt 0:03:27]} 9. Bxe7 {[%emt 0:00:11]} Nxe7 {[%emt 0:00:06]} 10. Nge2 $146 {[%emt 0:01:18]} ({Predecessor:} 10. Be4 Nbc6 11. Qf3 Bb7 12. Qe2 Qc8 13. Nf3 f5 14. Bb1 Nb4 15. a3 {0-1 (26) Lopes Pereira,E (1837)-Silva,C (1742) Fortaleza 2014}) 10... Bb7 {[%emt 0:00:31]} 11. Be4 {[%emt 0:01:30]} Bxe4 {[%emt 0:06:05]} 12. Nxe4 {[%emt 0:00:10]} Nd5 {[%emt 0:00:01]} 13. O-O {[%emt 0:00:36]} Nd7 {[%emt 0:00:09]} 14. Rc1 {[%emt 0:03:09]} N7f6 {[%emt 0:06:07]} 15. Nxf6+ {[%emt 0:03:13]} Nxf6 {[%emt 0:00:58]} 16. Qa4 {[%emt 0:13:23]} Re8 {[%emt 0:02:56]} 17. Rc6 {[%emt 0:01:36]} a5 {[%emt 0:01:09]} 18. Rfc1 {[%emt 0:00:16]} Nd5 {[%emt 0:01:19]} 19. Qc4 {[%emt 0:10:57]} (19. e4 $5 {[%cal Re4d5]} Nf6 20. Qc2 $16 (20. Rxc7 Nxe4 21. Qb5 Nf6 $11)) 19... Rc8 {[%emt 0:00:41]} 20. a3 {[%emt 0:04:19]} Re7 {[%emt 0:00:06]} 21. e4 {[%emt 0:00:44]} Nf6 {[%emt 0:00:09]} 22. f3 {[%emt 0:00:29]} Ne8 {[%emt 0:00:32]} 23. e5 Rb8 {[%emt 0:04:31]} 24. Nc3 {[%emt 0:06:25]} Rd7 {[%emt 0:02:19]} 25. Nb5 {[%emt 0:01:00]} g6 {[%emt 0:02:18]} 26. Kf2 {[%emt 0:00:30]} Kf8 {[%emt 0:01:51]} (26... Qh4+ $1 $11 27. Kg1 Rbd8) 27. g3 {[%emt 0:01:34]} Rd5 {[%emt 0:03:42]} 28. a4 {[%emt 0:05:32]} h5 {[%emt 0:03:44]} 29. h4 {[%emt 0:01:32]} Rd7 {[%emt 0:01:23]} 30. f4 {[%emt 0:00:48]} (30. Qc3 $16) 30... Rd5 {[%emt 0:01:11]} 31. Kf3 {[%emt 0:00:51]} Rd7 {[%emt 0:00:31]} 32. Ke4 {[%emt 0:00:37]} Rb7 {[%emt 0:00:15]} 33. Rc2 {[%emt 0:00:31]} Rd5 {[%emt 0:00:18]} 34. Rc3 {[%emt 0:02:33]} Rd7 {[%emt 0:00:42]} 35. Rc1 {[%emt 0:03:04]} Rd5 {[%emt 0:00:07]} 36. Rh1 {[%emt 0:01:19] [#]} (36. Kd3 $14 {keeps the upper hand.}) 36... f5+ $2 {[%emt 0:04:12]} (36... Ng7 $1 $17) 37. Ke3 {[%emt 0:01:48]} Kf7 $2 {[%emt 0:02:15]} (37... Qd7 38. Rd1 Kg7) 38. Nc3 {[%emt 0:01:17]} Ng7 {[%emt 0:05:02]} 39. Nxd5 {[%emt 0:00:36]} exd5 {[%emt 0:00:12]} 40. Qa6 {[%emt 0:01:47]} Rb8 {[%emt 0:00:38]} 41. Rf6+ {[%emt 0:00:21]} Kg8 {[%emt 0:01:41]} 42. Rxg6 {[%emt 0:01:28]} Qe8 {[%emt 0:00:12]} 43. Qa7 {[%emt 0:03:20]} Rc8 {[%emt 0:01:42]} 44. Qb7 {[%emt 0:00:14]} Qxg6 {[%emt 0:03:48]} 45. Qxc8+ {[%emt 0:00:12]} Kh7 {[%emt 0:00:07]} 46. Kf3 {[%emt 0:06:15]} Qc6 {[%emt 0:00:25]} 47. Re1 {[%emt 0:00:43]} Qc4 $18 {[%emt 0:01:45]} 48. Qd7 {[%emt 0:05:52]} Qd3+ {[%emt 0:01:43]} 49. Kg2 {[%emt 0:00:55]} Qd2+ {[%emt 0:00:11]} 50. Kf1 {[%emt 0:00:13]} Qd3+ {[%emt 0:00:30]} 51. Re2 {[%emt 0:02:58]} Qf3+ {[%emt 0:00:45]} 52. Rf2 {[%emt 0:00:17]} Qh1+ {[%emt 0:00:15]} 1/2-1/2

[Event "XVII Profigaia Open 2017"]
[Site "Gaia"]
[Date "2017.06.17"]
[Round "5"]
[White "Santos, Ricardo"]
[Black "Catarro, Jose Joao Dias"]
[Result "1/2-1/2"]
[ECO "B01"]
[WhiteElo "2088"]
[BlackElo "1833"]
[Annotator "NA RC"]
[PlyCount "74"]
[EventDate "2017.??.??"]
[EventType "swiss"]
[EventCountry "POR"]
[SourceTitle "playchess.com"]
[Source "ChessBase"]
[SourceQuality "1"]
[TimeControl "5400+30"]

{[%evp 15,74,20,32767,9,1,12,22,17,32767,32767,32767,5,32767,9,32767,32767,7,0,0,-42,-51,-50,-19,-3,-1,-47,93,32767,32767,32767,32767,32767,32767,32767,32767,-30,32767,-29,-31,-31,-20,-19,-22,32767,-25,-24,-24,-16,0,32767,0,-22,-13,-12,0,0,0,0,0,0,0]} 1. e4 {[%emt 0:02:06]} d5 {[%emt 0:00:08]} 2. exd5 {[%emt 0:00:05]} Qxd5 {[%emt 0:00:08]} 3. Nc3 {[%emt 0:00:14]} Qd6 {[%emt 0:00:06]} 4. d4 {[%emt 0:00:15]} Nf6 {[%emt 0:00:21]} 5. Nf3 {[%emt 0:02:00]} a6 {[%emt 0:00:47]} 6. g3 {[%emt 0:00:26]} Bg4 {[%emt 0:00:19]} 7. Bg2 {[%emt 0:00:14] B01: Scandinavian Defence} Nc6 {[%emt 0:02:02]} (7... c6 8. O-O e6 9. h3 Bxf3 10. Bxf3 Be7 11. b3 O-O 12. Bb2 Nbd7 13. Ne2 Rad8 14. Re1 Rfe8 {0-1 (64) Hou,Y (2663)-Megaranto,S (2535) Almaty 2016}) 8. d5 {[%emt 0:09:54]} Ne5 {[%emt 0:00:44]} 9. Bf4 {[%emt 0:01:12]} Nxf3+ {[%emt 0:00:19]} 10. Bxf3 {[%emt 0:00:08]} Bxf3 {[%emt 0:00:12]} 11. Qxf3 {[%emt 0:00:17]} e5 {[%emt 0:00:58]} 12. dxe6 {[%emt 0:01:59]} Qxe6+ {[%emt 0:00:02]} 13. Kf1 {[%emt 0:01:00]} O-O-O {[%emt 0:00:13]} 14. Kg2 {[%emt 0:00:27]} Bb4 $146 {[%emt 0:05:08]} ({Predecessor:} 14... Bd6 15. Rhe1 Qf5 {½-½ (15) Torgersen,T (2133)-Tolhuizen,L (2255) Gausdal 2007}) 15. Rhe1 {[%emt 0:02:04]} Qg4 {[%emt 0:01:29]} 16. Qxg4+ {[%emt 0:28:04]} Nxg4 {[%emt 0:00:08]} 17. Re4 {[%emt 0:00:46]} (17. h3 $5 {[%cal Rh3g4]} Nf6 18. Be5 $11) 17... Bxc3 $1 {[%emt 0:02:15]} 18. bxc3 {[%emt 0:00:07]} Nf6 {[%emt 0:01:10]} 19. Re7 {[%emt 0:01:15]} Rd7 {[%emt 0:00:27]} 20. Rae1 {[%emt 0:00:08]} Rhd8 {[%emt 0:00:45]} (20... Nd5 $15 {keeps the upper hand.} 21. Rxd7 Nxf4+ 22. Kf3 Kxd7 23. Kxf4 Re8 24. Rxe8 Kxe8) 21. Kf3 {[%emt 0:04:30]} Nd5 {[%emt 0:11:24]} 22. Rxd7 {[%emt 0:01:21]} Rxd7 {[%emt 0:00:24]} 23. Re8+ {[%emt 0:00:39]} Rd8 {[%emt 0:00:01]} 24. Rxd8+ {[%emt 0:01:19]} Kxd8 {[%emt 0:00:06]} 25. Be5 {[%emt 0:05:38]} f6 {[%emt 0:00:46]} 26. Bd4 {[%emt 0:00:09]} b6 {[%emt 0:00:11]} 27. Ke4 {[%emt 0:00:17]} Ne7 {[%emt 0:00:22]} 28. c4 {[%emt 0:04:59]} Kd7 {[%emt 0:00:09]} 29. h4 {[%emt 0:00:48]} Ke6 {[%emt 0:01:08]} 30. Be3 {[%emt 0:01:44]} c5 {[%emt 0:04:34]} 31. Bf4 {[%emt 0:00:29]} b5 {[%emt 0:01:55]} 32. Be3 {[%emt 0:04:22]} Kd6 {[%emt 0:00:24]} 33. cxb5 {[%emt 0:00:40]} axb5 {[%emt 0:00:13]} 34. Bf4+ {[%emt 0:03:46]} Kc6 {[%emt 0:00:51]} 35. h5 {[%emt 0:00:34]} Kd7 {[%emt 0:04:16]} 36. g4 {[%emt 0:00:54]} Ke6 {[%emt 0:00:26]} 37. Be3 {[%emt 0:00:47] Ke5+} Kd6 $11 1/2-1/2

[Event "XVII Profigaia Open 2017"]
[Site "Gaia"]
[Date "2017.06.17"]
[Round "5"]
[White "Margarido, Jose Miguel Teixeir"]
[Black "Andrade, Ricardo Sarmento"]
[Result "1/2-1/2"]
[ECO "E11"]
[WhiteElo "2038"]
[BlackElo "1754"]
[Annotator "NA RC"]
[PlyCount "73"]
[EventDate "2017.??.??"]
[EventType "swiss"]
[EventCountry "POR"]
[SourceTitle "playchess.com"]
[Source "ChessBase"]
[SourceQuality "1"]
[TimeControl "5400+30"]

{[%evp 12,64,59,53,68,32767,70,44,53,32767,32767,55,58,56,78,50,89,32767,32767,32767,32767,32767,32767,32767,70,69,49,27,43,26,76,1,32767,32767,32767,61,68,55,68,37,32767,32767,32767,32767,32767,32767,32767,14,4,11,32767,0,3,32767,-83]} 1. d4 {[%emt 0:02:54]} Nf6 {[%emt 0:02:52]} 2. Nf3 {[%emt 0:02:10]} e6 {[%emt 0:01:02]} 3. c4 {[%emt 0:00:56]} Bb4+ {[%emt 0:00:14]} 4. Nbd2 {[%emt 0:00:25]} d5 {[%emt 0:00:57]} 5. Qa4+ {[%emt 0:00:41]} Nc6 {[%emt 0:00:09]} 6. e3 {[%emt 0:00:40]} Bd7 {[%emt 0:06:52]} 7. Qc2 {[%emt 0:01:05] LiveBook: 16 Games E11: Bogo-Indian} Ne4 {[%emt 0:01:55]} 8. a3 {[%emt 0:12:03]} Nxd2 {[%emt 0:02:33]} 9. Bxd2 {[%emt 0:02:23]} Bxd2+ {[%emt 0:00:44]} 10. Nxd2 {[%emt 0:00:45]} O-O {[%emt 0:03:20]} 11. Bd3 {[%emt 0:00:56]} h6 {[%emt 0:01:38]} 12. O-O {[%emt 0:00:28]} a5 $146 {[%emt 0:03:11]} ({Predecessor:} 12... Ne7 13. Rac1 dxc4 14. Bxc4 Rc8 15. Ba2 Bc6 16. Rfd1 b6 17. Nc4 Bd5 {1-0 (47) Mchedlishvili,M (2635)-Malakhatko,V (2531) Al Ain 2015}) 13. b3 {[%emt 0:10:48]} dxc4 {[%emt 0:07:35]} 14. bxc4 {[%emt 0:02:26]} a4 {[%emt 0:03:32]} 15. Rab1 {[%emt 0:02:10]} Na5 {[%emt 0:01:58]} 16. Be4 {[%emt 0:01:59]} Ra7 {[%emt 0:02:49]} 17. Qc3 {[%emt 0:05:52]} Qe7 {[%emt 0:13:00]} 18. Rfc1 {[%emt 0:06:35]} c5 {[%emt 0:02:31]} 19. Rb6 {[%emt 0:05:38]} cxd4 {[%emt 0:01:32]} 20. exd4 {[%emt 0:00:21]} Rc8 {[%emt 0:01:33]} (20... Rd8 $11 {keeps the balance.}) 21. Qd3 {[%emt 0:01:49]} Be8 {[%emt 0:10:53]} 22. h3 {[%emt 0:13:47]} Rc7 {[%emt 0:04:00]} 23. Rcb1 {[%emt 0:02:12]} Ra8 {[%emt 0:03:50]} 24. d5 {[%emt 0:05:57]} exd5 {[%emt 0:04:36]} 25. cxd5 {[%emt 0:00:16]} Qe5 {[%emt 0:06:34]} 26. Nf3 {[%emt 0:00:11]} Qc3 {[%emt 0:00:07]} 27. Rd1 {[%emt 0:00:28]} Qxd3 {[%emt 0:00:38]} 28. Rxd3 {[%emt 0:00:07]} Rd8 {[%emt 0:11:56]} 29. d6 {[%emt 0:07:49]} Rc1+ {[%emt 0:00:06]} 30. Kh2 {[%emt 0:00:01]} Bc6 {[%emt 0:01:21]} 31. Rb4 {[%emt 0:06:11]} Rc4 {[%emt 0:00:51]} 32. Bxc6 {[%emt 0:01:43]} Rxb4 $17 {[%emt 0:00:10]} 33. axb4 {[%emt 0:00:03]} Nxc6 {[%emt 0:00:05]} 34. b5 {[%emt 0:00:27]} Nb4 {[%emt 0:00:49]} 35. Rd4 {[%emt 0:00:55]} Nc2 {[%emt 0:00:31]} 36. Rc4 {[%emt 0:00:43]} Na3 {[%emt 0:00:11]} 37. Rxa4 {[%emt 0:03:32]} 1/2-1/2

[Event "XVII Profigaia Open 2017"]
[Site "Gaia"]
[Date "2017.06.17"]
[Round "5"]
[White "Pinto, Pedro Jorge de Mora"]
[Black "Soares, Sara Joana De Moura"]
[Result "1/2-1/2"]
[ECO "C54"]
[WhiteElo "2038"]
[BlackElo "1183"]
[Annotator "NA RC"]
[PlyCount "46"]
[EventDate "2017.??.??"]
[EventType "swiss"]
[EventCountry "POR"]
[SourceTitle "playchess.com"]
[Source "ChessBase"]
[SourceQuality "1"]
[TimeControl "5400+30"]

{[%evp 18,46,-5,-15,4,-20,32767,32767,32767,-38,32767,32767,37,26,32767,-1,35,15,55,0,54,47,32767,33,32767,-6,-2,-8,-13,-27,-2]} 1. e4 {[%emt 0:00:00]} e5 {[%emt 0:00:13]} 2. Nf3 {[%emt 0:00:00]} Nc6 {[%emt 0:00:24]} 3. Bc4 {[%emt 0:00:05]} Bc5 {[%emt 0:00:31]} 4. c3 {[%emt 0:00:07]} Nf6 {[%emt 0:00:20]} 5. d3 {[%emt 0:00:05]} h6 {[%emt 0:01:54]} 6. a4 {[%emt 0:00:17] C54: Giuoco Piano: 4 c3 Nf6, main lines with 5 d4 and 5 d3} (6. O-O d6 7. a4 a6 8. Re1 O-O 9. Na3 Bxa3 10. Rxa3 Be6 11. Ba2 Re8 12. h3 Qd7 13. Nh4 Bxa2 14. Rxa2 Ne7 15. Qf3 Nh7 {0-1 (49) Tsydypov,Z (2451)-Alekseev,E (2636) St Petersburg 2016}) 6... a5 {[%emt 0:02:27]} 7. Bd2 $146 {[%emt 0:00:55]} ({Predecessor:} 7. h3 O-O 8. Qb3 d6 9. g4 Nh7 10. Be3 Qf6 11. Nbd2 Nd8 12. Ke2 Ne6 13. Rag1 Nf4+ 14. Bxf4 Qxf4 {0-1 (33) Nikolic,M (2185)-Jeremic,D (2224) Belgrade 2016}) 7... d6 {[%emt 0:02:19]} 8. b4 {[%emt 0:00:38]} axb4 {[%emt 0:06:22]} 9. cxb4 {[%emt 0:00:21]} Bd4 {[%emt 0:02:31]} 10. Nxd4 {[%emt 0:01:26]} Nxd4 {[%emt 0:00:09]} 11. Be3 {[%emt 0:00:45]} Ne6 {[%emt 0:09:15]} 12. Nc3 {[%emt 0:01:39]} O-O {[%emt 0:01:35]} 13. b5 {[%emt 0:01:01]} (13. O-O $11) 13... Bd7 {[%emt 0:08:47]} 14. O-O {[%emt 0:01:31]} Re8 {[%emt 0:04:39]} 15. h3 {[%emt 0:00:28]} c6 {[%emt 0:01:35]} 16. bxc6 {[%emt 0:01:28]} Bxc6 {[%emt 0:00:29]} 17. Qb3 {[%emt 0:01:02]} Nd7 {[%emt 0:04:40]} 18. Bd5 {[%emt 0:01:51]} Bxd5 {[%emt 0:02:36]} 19. Nxd5 {[%emt 0:00:43]} Ndc5 {[%emt 0:02:19]} 20. Qb5 {[%emt 0:03:20]} Qa5 {[%emt 0:14:43]} 21. Qb6 {[%emt 0:08:57]} Qxb6 {[%emt 0:03:23]} 22. Nxb6 {[%emt 0:00:23]} Ra6 {[%emt 0:04:29]} 23. Rab1 $11 {[%emt 0:04:20]} Rd8 {[%emt 0:03:17]} 1/2-1/2

[Event "XVII Profigaia Open 2017"]
[Site "Gaia"]
[Date "2017.06.17"]
[Round "5"]
[White "Andrade Sandoval, Jim Carlos"]
[Black "Fernandes, Claudio Micael Sous"]
[Result "1-0"]
[ECO "D08"]
[WhiteElo "1971"]
[BlackElo "1661"]
[Annotator "NA RC"]
[PlyCount "81"]
[EventDate "2017.??.??"]
[EventType "swiss"]
[EventCountry "POR"]
[SourceTitle "playchess.com"]
[Source "ChessBase"]
[SourceQuality "1"]
[TimeControl "5400+30"]

{[%evp 16,81,129,32767,32767,32767,171,131,136,147,166,145,159,32767,177,32767,32767,32767,32767,153,201,158,166,174,32767,398,352,393,437,455,32767,32767,32767,32767,32767,32767,32767,524,32767,659,32767,32767,709,751,883,32767,921,32767,32767,32767,32767,32767,32767,32767,32767,32767,32767,32767,5014,1858,1226,1714,980,32767,29996,29997,29997,1674]} 1. d4 {[%emt 0:00:00]} d5 {[%emt 0:00:01]} 2. c4 {[%emt 0:00:00]} e5 {[%emt 0:00:35]} 3. dxe5 {[%emt 0:00:00]} d4 {[%emt 0:00:02]} 4. Nf3 {[%emt 0:00:00]} Nc6 {[%emt 0:00:03]} 5. a3 {[%emt 0:00:06]} f6 {[%emt 0:00:38]} 6. exf6 {[%emt 0:09:45] D08: Albin Counter Gambit} Qxf6 {[%emt 0:00:02]} 7. Bg5 {[%emt 0:04:43]} Qg6 {[%emt 0:00:01]} 8. Nbd2 {[%emt 0:00:50]} h6 {[%emt 0:01:14]} 9. Bf4 {[%emt 0:14:18]} (9. Bh4 Nf6 10. b4 Bg4 11. b5 Bxf3 12. exf3 O-O-O 13. Bxf6 Nb4 14. Ne4 gxf6 15. Qa4 f5 16. axb4 fxe4 17. c5 {½-½ (17) Ebner,H (2235)-Schieder,A (2174) Austria 2015}) 9... Qf7 {[%emt 0:00:01]} 10. e3 $146 {[%emt 0:08:36]} ({Predecessor:} 10. Bg3 Be6 11. Qa4 O-O-O 12. O-O-O g5 13. Ne5 Nxe5 14. Bxe5 {1-0 (33) Brouwer,R (2035)-Loveid,E (1490) Helsingor 2014}) 10... Bg4 {[%emt 0:19:45]} (10... Nge7 $16) 11. Be2 {[%emt 0:00:03]} O-O-O {[%emt 0:00:46] [#]} 12. Nxd4 $1 {[%emt 0:00:31]} Bxe2 {[%emt 0:08:13]} 13. Nxe2 {[%emt 0:00:13]} g5 {[%emt 0:00:06]} 14. Bg3 {[%emt 0:00:55]} h5 {[%emt 0:01:30]} 15. h3 {[%emt 0:05:19]} h4 {[%emt 0:00:20]} 16. Bh2 {[%emt 0:00:04]} Bg7 {[%emt 0:01:16]} 17. Qc2 {[%emt 0:14:24]} g4 {[%emt 0:01:24]} (17... Nh6 $16 18. Ne4 g4) 18. Bf4 {[%emt 0:18:33]} Nf6 {[%emt 0:04:00]} 19. O-O-O {[%emt 0:00:09]} Nh5 {[%emt 0:01:08]} 20. hxg4 {[%emt 0:02:26]} Nxf4 {[%emt 0:00:05]} 21. Nxf4 {[%emt 0:00:05]} ({Less strong is} 21. exf4 Rhe8 $16) 21... Nd4 {[%emt 0:00:45]} 22. Qg6 {[%emt 0:06:07]} ({Not} 22. exd4 Qxf4 23. Kb1 Rxd4 $18) 22... Qf8 {[%emt 0:07:45]} 23. exd4 {[%emt 0:00:56]} Qxf4 {[%emt 0:00:01]} 24. Qxg7 {[%emt 0:00:18]} Rhg8 {[%emt 0:01:01]} 25. Qe5 {[%emt 0:00:30]} Qxg4 {[%emt 0:00:13]} 26. Qe4 {[%emt 0:01:05]} Qg5 {[%emt 0:00:51]} 27. Qxh4 {[%emt 0:00:32]} Qa5 {[%emt 0:00:04]} 28. Rhe1 {[%emt 0:01:13]} Kb8 {[%emt 0:00:29]} 29. g3 {[%emt 0:01:40]} b5 {[%emt 0:00:08]} 30. Re5 {[%emt 0:00:39]} a6 {[%emt 0:00:10]} 31. cxb5 {[%emt 0:02:54]} axb5 {[%emt 0:00:08]} 32. Qh5 {[%emt 0:00:20]} c6 {[%emt 0:00:15]} 33. Qf3 {[%emt 0:01:04]} Rxd4 {[%emt 0:00:09]} 34. Nb3 {[%emt 0:00:11]} Rxd1+ {[%emt 0:00:19]} 35. Qxd1 {[%emt 0:00:11]} Qc7 {[%emt 0:01:04]} 36. Qe1 {[%emt 0:00:18]} Qf7 {[%emt 0:00:58]} 37. Nc5 {[%emt 0:00:33]} Rd8 $11 {[%emt 0:00:37]} 38. Na6+ {[%emt 0:04:32]} (38. Re6 Qh5 39. Rxc6 Qd5 40. Na6+ Kb7) 38... Ka8 {[%emt 0:00:46]} 39. Nc5 {[%emt 0:01:04]} Qh7 {[%emt 0:01:19]} 40. Qa5+ {[%emt 0:00:21]} Kb8 {[%emt 0:00:11]} 41. Qxd8+ {[%emt 0:00:11]} 1-0

[Event "XVII Profigaia Open 2017"]
[Site "Gaia"]
[Date "2017.06.17"]
[Round "5"]
[White "De Souza Monteiro, Marcos Paulo"]
[Black "Marques, Ricardo Taborda Tri"]
[Result "1-0"]
[ECO "C13"]
[WhiteElo "1961"]
[BlackElo "1714"]
[Annotator "NA RC"]
[PlyCount "53"]
[EventDate "2017.??.??"]
[EventType "swiss"]
[EventCountry "POR"]
[SourceTitle "playchess.com"]
[Source "ChessBase"]
[SourceQuality "1"]
[TimeControl "5400+30"]

1. e4 {[%emt 0:00:00]} e6 {[%emt 0:00:51]} 2. d4 {[%emt 0:00:03]} d5 {[%emt 0:00:35]} 3. Nc3 {[%emt 0:00:06]} Nf6 {[%emt 0:00:24]} 4. Bg5 {[%emt 0:00:07]} Be7 {[%emt 0:00:15]} 5. e5 {[%emt 0:00:08]} Nfd7 {[%emt 0:00:06]} 6. h4 {[%emt 0:00:07]} h6 {[%emt 0:00:45]} 7. Bxe7 {[%emt 0:00:07]} Qxe7 {[%emt 0:00:07]} 8. Qg4 {[%emt 0:00:56]} O-O {[%emt 0:03:29] C14: French: Classical System: 4 Bg5 Be7 main line} 9. Rh3 {[%emt 0:10:44]} (9. f4 c5 10. Nf3 Nc6 11. O-O-O a6 12. Rh3 cxd4 13. Nxd4 Nxd4 14. Rxd4 f6 15. exf6 Qxf6 16. Qd1 {1-0 (62) Amonatov,F (2592)-Levin,E (2508) St Petersburg 2015}) 9... Kh7 $146 {[%emt 0:05:05]} ({Predecessor:} 9... c5 10. Rg3 f5 11. Qf4 cxd4 12. Nb5 Nc6 13. Nf3 Kh7 14. O-O-O Nc5 15. Nfxd4 Bd7 16. Nd6 {0-1 (47) Grguric,D (2141)-Fucak,E (2318) Umag 2005}) 10. Rg3 {[%emt 0:02:40]} Rg8 {[%emt 0:01:01]} 11. Bd3+ {[%emt 0:00:43]} g6 $2 {[%emt 0:08:11]} (11... Kh8 $14) 12. h5 {[%emt 0:04:57]} f5 {[%emt 0:10:52]} (12... Nf8 $142 13. hxg6+ fxg6) 13. hxg6+ {[%emt 0:02:02]} Kg7 {[%emt 0:00:32]} 14. Qh5 {[%emt 0:05:25]} c5 {[%emt 0:10:01]} 15. Nb5 {[%emt 0:24:22]} ({Not} 15. Rh3 Qg5 $18) 15... cxd4 {[%emt 0:14:19]} 16. Rh3 {[%emt 0:04:10]} (16. f4 $142) 16... Rh8 {[%emt 0:02:06]} 17. Nd6 $2 {[%emt 0:02:25]} (17. f4 $18) 17... Qg5 $2 {[%emt 0:09:45]} (17... Nxe5 $16 {is more resistant.} 18. Nxc8 Qb4+ 19. Kf1 Nbd7) 18. Qxg5 {[%emt 0:00:52]} hxg5 {[%emt 0:00:10]} 19. Rxh8 {[%emt 0:00:06]} Kxh8 {[%emt 0:00:10]} 20. Nxc8 $18 {[%emt 0:00:09]} Nxe5 {[%emt 0:02:21]} 21. Nd6 {[%emt 0:00:48]} Nbc6 {[%emt 0:01:17]} 22. Nh3 {[%emt 0:02:53]} Nb4 {[%emt 0:05:15]} 23. Nf7+ {[%emt 0:01:24]} Nxf7 {[%emt 0:00:25]} 24. gxf7 {[%emt 0:00:05]} Kg7 {[%emt 0:01:58]} 25. Nxg5 {[%emt 0:00:19]} Rh8 {[%emt 0:01:42]} 26. Ke2 {[%emt 0:05:13]} Kf6 {[%emt 0:02:17]} 27. f8=Q+ {[%emt 0:00:14]} 1-0

[Event "XVII Profigaia Open 2017"]
[Site "Gaia"]
[Date "2017.06.17"]
[Round "5"]
[White "De Sousa Da Silva, Armando"]
[Black "Sismeiro, Miguel"]
[Result "1/2-1/2"]
[ECO "D02"]
[WhiteElo "1926"]
[BlackElo "1528"]
[Annotator "NA RC"]
[PlyCount "69"]
[EventDate "2017.??.??"]
[EventType "swiss"]
[EventCountry "POR"]
[SourceTitle "playchess.com"]
[Source "ChessBase"]
[SourceQuality "1"]
[TimeControl "5400+30"]

{[%evp 16,69,42,18,39,40,32767,32767,32767,16,30,-113,-110,-229,-219,-229,-215,-214,-229,32767,-195,-231,-194,-186,-176,-193,-150,-187,-138,-145,-144,-141,-130,-118,-59,-75,-82,32767,32767,32767,32767,32767,32767,32767,32767,32767,32767,32767,32767,32767,32767,32767,32767,-41,32767,-56]} 1. d4 {[%emt 0:00:00]} d5 {[%emt 0:04:24]} 2. Bf4 {[%emt 0:00:35]} Nf6 {[%emt 0:00:40]} 3. Nf3 {[%emt 0:00:07]} e6 {[%emt 0:00:46]} 4. e3 {[%emt 0:00:09]} Bd6 {[%emt 0:01:00]} 5. Ne5 {[%emt 0:04:54]} O-O {[%emt 0:01:58]} 6. Bd3 {[%emt 0:00:10]} c5 {[%emt 0:02:08]} 7. c3 {[%emt 0:00:06]} c4 {[%emt 0:01:35] D02: 1 d4 d5 2 Nf3 sidelines, including 2...Nf6 3 g3 and 2...Nf6 3 Bf4} (7... Nc6 8. Bg3 Qc7 9. f4 b6 10. Nd2 Bb7 11. O-O Ne7 12. Bh4 Ne4 13. Bxe7 Qxe7 14. Nxe4 dxe4 15. Be2 Rac8 16. Qa4 a6 17. Qb3 Bc7 18. a4 Rb8 19. f5 Bxe5 20. dxe5 {1-0 (66) Kayumov,S (2505)-Salgado Lopez,I (2622) Dubai 2014}) 8. Bc2 {[%emt 0:00:09]} Qb6 {[%emt 0:00:21]} 9. b3 $146 {[%emt 0:06:49]} ({Predecessor:} 9. Qc1 Nh5 10. Bg3 Nd7 11. Nxd7 Bxd7 12. Bxd6 Qxd6 13. Nd2 b5 14. a3 a5 15. O-O {½-½ (24) Siebenborn,B (1890)-Hencke,H (1644) Leck 2014}) 9... cxb3 {[%emt 0:03:39]} 10. axb3 {[%emt 0:00:02]} Nbd7 {[%emt 0:01:00]} 11. Qd3 {[%emt 0:06:43]} Qc7 {[%emt 0:04:46]} 12. Nxd7 {[%emt 0:07:30]} Bxd7 {[%emt 0:00:19]} 13. Bg5 {[%emt 0:00:07]} (13. Bxd6 $11 {remains equal.} Qxd6 14. Nd2) 13... Ne4 {[%emt 0:00:17] [#]} 14. f3 {[%emt 0:00:19]} (14. Bf4 $1 $17 {[%mdl 512] was called for.}) 14... Nxg5 {[%emt 0:00:22]} 15. h4 {[%emt 0:00:01] [#]} Nxf3+ $1 {[%emt 0:03:11]} 16. gxf3 {[%emt 0:00:01]} f5 {[%emt 0:00:12]} 17. f4 {[%emt 0:04:53]} a6 {[%emt 0:01:02]} 18. Nd2 {[%emt 0:00:20]} b5 {[%emt 0:01:04]} 19. c4 {[%emt 0:01:05]} bxc4 {[%emt 0:00:19]} 20. bxc4 {[%emt 0:00:02]} dxc4 {[%emt 0:02:01]} 21. Qxc4 {[%emt 0:00:01]} Rfc8 {[%emt 0:00:17]} 22. Qxc7 {[%emt 0:00:21]} Rxc7 {[%emt 0:00:08]} 23. Bd3 {[%emt 0:00:10]} Bb4 {[%emt 0:01:29]} 24. Ke2 {[%emt 0:01:16]} Bxd2 {[%emt 0:01:19]} (24... a5 $17 25. Rhc1 Rxc1 26. Rxc1 Rc8) 25. Kxd2 {[%emt 0:00:09]} a5 {[%emt 0:00:23]} 26. Rhc1 {[%emt 0:04:07]} Rxc1 {[%emt 0:03:33]} 27. Kxc1 {[%emt 0:00:24]} g6 {[%emt 0:00:07]} 28. Kb2 Kg7 {[%emt 0:00:31]} 29. Rc1 {[%emt 0:00:29]} Ra7 {[%emt 0:00:07]} 30. Ka3 {[%emt 0:01:31]} Kf6 {[%emt 0:00:11]} 31. Be2 {[%emt 0:00:30]} h6 {[%emt 0:00:40]} 32. Bf3 {[%emt 0:01:08]} Ke7 {[%emt 0:00:24]} 33. Rc5 {[%emt 0:01:43]} Kd6 {[%emt 0:03:24]} 34. Kb2 Ra6 {[%emt 0:02:39]} 35. Ka3 $15 {[%emt 0:04:36]} 1/2-1/2